bitfinex/quotes_BTCUSD_20240101
["timestamp","ask_amount","ask_price","bid_price","bid_amount"]
[1704133386707,0.3,43148.0,43138.0,0.05169421]
[1704133386919,0.32650396,43147.0,43139.0,0.0065081]
[1704133388249,0.32650396,43147.0,43138.0,0.04464]
[1704133388477,0.32750396,43147.0,43140.0,0.00650586]
[1704133388707,0.32750396,43147.0,43139.0,0.0075081]
[1704133388918,0.32750396,43147.0,43141.0,0.00650363]
[1704133389136,0.32650396,43147.0,43140.0,0.00650586]
[1704133389362,0.32650396,43147.0,43142.0,0.00650139]
[1704133389577,0.32650396,43147.0,43141.0,0.00646326]
[1704133389790,0.10328685,43147.0,43143.0,0.07407879]
[1704133390026,0.10328685,43147.0,43143.0,0.463567]
[1704133390240,0.10328685,43147.0,43144.0,0.05598]
[1704133390444,0.10428685,43147.0,43144.0,0.06243655]
[1704133390594,0.09428685,43147.0,43144.0,0.06243655]
[1704133390801,0.10128685,43147.0,43144.0,0.06243655]
[1704133391005,0.008,43147.0,43145.0,0.05976]
[1704133391208,0.001,43147.0,43145.0,0.16621432]
[1704133391413,0.008,43147.0,43145.0,0.16621432]
[1704133391614,0.007,43147.0,43146.0,0.06714]
[1704133392021,0.007,43147.0,43146.0,0.07358144]
[1704133392404,0.10028685,43147.0,43146.0,0.07358144]
[1704133392606,0.09328685,43147.0,43146.0,0.07358144]
[1704133392809,0.02328685,43147.0,43146.0,0.05768144]
[1704133393815,0.02428685,43147.0,43146.0,0.07168144]
[1704133394454,0.02328685,43147.0,43146.0,0.06468144]
[1704133394657,0.02328685,43147.0,43146.0,0.01344144]
[1704133395051,0.02328685,43147.0,43146.0,0.00644144]
[1704133395273,0.02328685,43147.0,43146.0,0.01444144]
[1704133395482,0.02328685,43147.0,43146.0,0.008]
[1704133395691,0.02328685,43147.0,43146.0,0.01444144]
[1704133396556,0.02428685,43147.0,43146.0,0.01444144]
[1704133396978,0.02428685,43147.0,43146.0,0.02144144]
[1704133397391,0.02428685,43147.0,43146.0,0.01344144]
[1704133397392,0.02328685,43147.0,43146.0,0.01344144]
[1704133397612,0.02428685,43147.0,43146.0,0.02044144]
[1704133397735,0.02428685,43147.0,43146.0,0.07092144]
[1704133398172,0.02428685,43147.0,43146.0,0.06392144]
[1704133398173,0.02828685,43147.0,43146.0,0.06392144]
[1704133399031,0.06987949,43147.0,43146.0,0.74962344]
[1704133399237,0.005,43147.0,43146.0,1.07550344]
[1704133399446,0.001,43147.0,43146.0,1.07550344]
[1704133399660,0.05,43163.0,43150.0,0.1]
[1704133399867,0.2980966,43162.0,43151.0,0.09328685]
[1704133400089,0.2980966,43162.0,43151.0,0.57436609]
[1704133400299,0.2980966,43162.0,43151.0,0.43451924]
[1704133400510,0.3,43161.0,43151.0,0.43451924]
[1704133400718,0.2980966,43160.0,43151.0,0.43451924]
[1704133400929,0.2980966,43160.0,43151.0,0.43551924]
[1704133401133,0.2980966,43160.0,43151.0,0.43451924]
[1704133401346,0.2980966,43160.0,43151.0,0.43551924]
[1704133402614,0.2980966,43160.0,43151.0,0.43651924]
[1704133402811,0.2980966,43160.0,43151.0,0.43451924]
[1704133403021,0.35352,43159.0,43151.0,0.00641924]
[1704133403236,0.2980966,43158.0,43151.0,0.00741924]
[1704133403453,0.2980966,43158.0,43145.0,0.890151]
[1704133403654,0.2980966,43158.0,43152.0,0.00573011]
[1704133403878,0.2980966,43158.0,43151.0,0.001]
[1704133404100,0.2980966,43158.0,43145.0,0.990151]
[1704133404311,0.3020966,43158.0,43152.0,0.00590507]
[1704133404522,0.7655126,43158.0,43145.0,0.990151]
[1704133404724,0.7655126,43158.0,43145.0,0.890151]
[1704133404944,0.7655126,43158.0,43146.0,0.00611174]
[1704133405797,0.7655126,43158.0,43146.0,0.05627174]
[1704133405798,0.7615126,43158.0,43146.0,0.05627174]
[1704133406010,0.7615126,43158.0,43149.0,0.1]
[1704133406011,0.3030966,43158.0,43149.0,0.1]
[1704133406227,0.2990966,43158.0,43149.0,0.1]
[1704133406447,0.2990966,43158.0,43150.0,0.52809051]
[1704133406448,0.2980966,43158.0,43150.0,0.52809051]
[1704133406666,0.2980966,43158.0,43150.0,1.09158351]
[1704133406667,0.06887949,43158.0,43150.0,1.09158351]
[1704133406884,0.06587949,43158.0,43151.0,0.06624]
[1704133407123,0.06587949,43158.0,43154.0,0.1]
[1704133407333,0.06887949,43158.0,43155.0,0.1]
[1704133407541,0.06487949,43158.0,43155.0,0.1729871]
[1704133407756,0.06587949,43158.0,43156.0,0.06222]
[1704133407973,0.06587949,43158.0,43157.0,0.00607541]
[1704133408489,0.06587949,43158.0,43157.0,0.07633541]
[1704133408693,0.06587949,43158.0,43157.0,0.17633541]
[1704133409119,0.06487949,43158.0,43157.0,0.17633541]
[1704133409549,0.06587949,43158.0,43157.0,0.08333541]
[1704133409755,0.06487949,43158.0,43157.0,0.07633541]
[1704133409986,0.06487949,43158.0,43157.0,0.06687541]
[1704133410198,0.06587949,43158.0,43157.0,0.06687541]
[1704133410393,0.06487949,43158.0,43157.0,0.15887541]
[1704133410662,0.06587949,43158.0,43157.0,0.17387541]
[1704133412026,0.06587949,43158.0,43157.0,0.16587541]
[1704133412255,0.06587949,43158.0,43157.0,0.19203541]
[1704133412450,0.06587949,43158.0,43157.0,0.19903541]
[1704133412652,0.001,43158.0,43157.0,0.66245941]
[1704133413224,0.001,43158.0,43157.0,0.65545941]
[1704133413448,0.0263,43169.0,43158.0,0.1]
[1704133413662,0.0263,43169.0,43157.0,0.55845941]
[1704133413663,0.0263,43169.0,43167.0,0.1]
[1704133413868,0.0263,43169.0,43167.0,0.19328685]
[1704133414092,0.06487949,43168.0,43164.0,0.4331]
[1704133414296,0.06487949,43168.0,43165.0,0.463335]
[1704133414550,0.06487949,43168.0,43164.0,0.4331]
[1704133414754,0.06487949,43168.0,43165.0,0.463335]
[1704133415169,0.06487949,43168.0,43166.0,0.00599053]
[1704133416053,0.06487949,43168.0,43165.0,0.004]
[1704133416271,0.06487949,43168.0,43167.0,0.00609919]
[1704133416482,0.2980966,43168.0,43159.0,0.4634]
[1704133416719,0.2990966,43168.0,43166.0,0.001]
[1704133416926,0.23321711,43167.0,43166.0,0.001]
[1704133417134,0.2980966,43167.0,43160.0,0.00611984]
[1704133417351,0.06487949,43166.0,43159.0,0.4634]
[1704133417564,0.06487949,43166.0,43161.0,0.00611649]
[1704133417799,0.06487949,43166.0,43160.0,0.00611984]
[1704133418075,0.06487949,43166.0,43162.0,0.00611314]
[1704133418328,0.06487949,43166.0,43161.0,0.00611649]
[1704133418556,0.06487949,43166.0,43163.0,0.00611259]
[1704133418804,0.06487949,43166.0,43162.0,0.00611594]
[1704133419059,0.06487949,43166.0,43164.0,0.00611961]
[1704133419273,0.06587949,43166.0,43163.0,0.00612296]
[1704133419484,0.06587949,43166.0,43165.0,0.00611626]
[1704133419691,0.06487949,43166.0,43164.0,0.00611961]
[1704133419895,0.06987949,43166.0,43165.0,0.00611626]
[1704133420310,0.06987949,43166.0,43159.0,0.4634]
[1704133420519,0.06987949,43166.0,43165.0,0.00611381]
[1704133420725,0.06987949,43166.0,43161.0,0.463375]
[1704133420973,0.06987949,43166.0,43165.0,0.00611381]
[1704133421177,0.06487949,43166.0,43161.0,0.508855]
[1704133421395,0.06587949,43166.0,43165.0,0.00704134]
[1704133421603,0.06587949,43166.0,43161.0,0.463375]
[1704133421856,0.06587949,43166.0,43165.0,0.00782036]
[1704133421857,0.06487949,43166.0,43165.0,0.00782036]
[1704133422099,0.06487949,43166.0,43161.0,0.464375]
[1704133422389,0.06487949,43166.0,43161.0,0.463375]
[1704133422600,0.06487949,43166.0,43165.0,0.002]
[1704133423027,0.06487949,43166.0,43165.0,0.00703372]
[1704133423233,0.06487949,43166.0,43161.0,0.467375]
[1704133423438,0.06487949,43166.0,43165.0,0.00703372]
[1704133423669,0.06487949,43166.0,43161.0,0.463375]
[1704133423670,0.06487949,43166.0,43161.0,0.465375]
[1704133423880,0.06487949,43166.0,43165.0,0.00781524]
[1704133424088,0.06487949,43166.0,43161.0,0.465375]
[1704133424300,0.06487949,43166.0,43165.0,0.00781524]
[1704133424509,0.06487949,43166.0,43161.0,0.465375]
[1704133424687,0.06487949,43166.0,43165.0,0.00703372]
[1704133424926,0.06487949,43166.0,43163.0,0.463354]
[1704133425140,0.06487949,43166.0,43165.0,0.00781524]
[1704133425356,0.06487949,43166.0,43165.0,0.002]
[1704133425533,0.06487949,43166.0,43165.0,0.00903372]
[1704133425742,0.06487949,43166.0,43165.0,0.00703372]
[1704133425953,0.06487949,43166.0,43165.0,0.01103372]
[1704133426792,0.06487949,43166.0,43165.0,0.01503372]
[1704133433633,0.05610137,43166.0,43165.0,0.01503372]
[1704133433878,0.05610137,43166.0,43165.0,0.01882493]
[1704133434283,0.0459405,43166.0,43165.0,0.01882493]
[1704133434935,0.04175195,43166.0,43165.0,0.01882493]
[1704133435322,0.04175195,43166.0,43165.0,0.02664164]
[1704133442252,0.04175195,43166.0,43165.0,0.01581671]
[1704133444322,0.04175195,43166.0,43165.0,0.0258776]
[1704133445353,0.03962807,43166.0,43165.0,0.0258776]
[1704133450491,0.03962807,43166.0,43165.0,0.02587756]
[1704133452791,0.03962807,43166.0,43165.0,0.02587755]
[1704133452988,0.36362807,43171.0,43165.0,0.02587755]
[1704133453191,0.23321711,43170.0,43165.0,0.02587755]
[1704133453529,0.23321711,43170.0,43165.0,0.01581666]
[1704133453944,0.23321711,43170.0,43166.0,0.01006288]
[1704133454152,0.23321711,43170.0,43166.0,0.01787954]
[1704133454413,0.36362807,43171.0,43166.0,0.01787954]
[1704133454658,0.002,43170.0,43166.0,0.01787954]
[1704133454859,0.23321711,43171.0,43166.0,0.01787954]
[1704133455055,0.002,43170.0,43166.0,0.01787954]
[1704133455203,0.23321711,43171.0,43166.0,0.01787954]
[1704133455620,0.23521711,43171.0,43166.0,0.01787954]
[1704133455862,0.23521711,43171.0,43166.0,0.01787953]
[1704133456508,0.23521711,43171.0,43166.0,0.00781665]
[1704133456892,0.23321711,43170.0,43166.0,0.00781665]
[1704133457118,0.23321711,43170.0,43167.0,0.0100442]
[1704133457326,0.23321711,43170.0,43167.0,0.01786085]
[1704133457991,0.23321711,43170.0,43167.0,0.00781665]
[1704133458451,0.23521711,43170.0,43167.0,0.00781665]
[1704133460257,0.23321711,43170.0,43167.0,0.00781665]
[1704133460576,0.23421711,43170.0,43167.0,0.00781665]
[1704133460790,0.23321711,43170.0,43167.0,0.00781665]
[1704133461210,0.23421711,43170.0,43167.0,0.00781665]
[1704133461425,0.23321711,43170.0,43167.0,0.00781665]
[1704133461637,0.23421711,43170.0,43168.0,0.01003751]
[1704133461848,0.23421711,43170.0,43168.0,0.01785415]
[1704133462050,0.23321711,43170.0,43168.0,0.00781664]
[1704133463830,0.23321711,43170.0,43168.0,0.00981664]
[1704133464256,0.23321711,43170.0,43168.0,0.00781664]
[1704133464450,0.23421711,43170.0,43161.0,0.45709464]
[1704133464880,0.23421711,43170.0,43169.0,0.01002509]
[1704133465080,0.23621711,43170.0,43161.0,0.45709464]
[1704133465256,0.23521711,43170.0,43169.0,0.01002509]
[1704133465457,0.23521711,43170.0,43161.0,0.45709464]
[1704133465657,0.23521711,43170.0,43169.0,0.01002509]
[1704133465884,0.23521711,43170.0,43161.0,0.45709464]
[1704133466060,0.23521711,43170.0,43169.0,0.01002509]
[1704133466440,0.23321711,43170.0,43161.0,0.45709464]
[1704133466658,0.23421711,43170.0,43161.0,0.45709464]
[1704133466867,0.23421711,43170.0,43169.0,0.01002509]
[1704133467067,0.23421711,43170.0,43161.0,0.465378]
[1704133467278,0.23321711,43170.0,43161.0,0.465378]
[1704133467452,0.23321711,43170.0,43169.0,0.01103081]
[1704133467685,0.4362473,43174.0,43169.0,0.001]
[1704133467896,0.53321711,43173.0,43162.0,0.05376]
[1704133468102,0.53321711,43173.0,43170.0,0.01002411]
[1704133468307,0.2,43172.0,43163.0,0.4195]
[1704133468534,0.23321711,43171.0,43163.0,0.4195]
[1704133470620,0.463349,43164.0,43157.0,0.4048]
[1704133470831,0.23321711,43163.0,43154.0,0.05430567]
[1704133471044,0.23321711,43163.0,43158.0,0.00913739]
[1704133471045,0.463377,43162.0,43158.0,0.00913739]
[1704133471251,0.23321711,43163.0,43152.0,0.4048]
[1704133471252,0.23321711,43161.0,43152.0,0.4048]
[1704133471711,0.23321711,43161.0,43159.0,0.00915715]
[1704133471919,0.23321711,43161.0,43153.0,0.0092032]
[1704133472127,0.23321711,43161.0,43152.0,0.4148]
[1704133472128,0.23321711,43161.0,43160.0,0.00915629]
[1704133472346,0.23321711,43161.0,43155.0,0.46344]
[1704133472552,0.23321711,43161.0,43160.0,0.00915629]
[1704133472727,0.23321711,43161.0,43155.0,0.46344]
[1704133472943,0.23321711,43161.0,43160.0,0.00915629]
[1704133473145,0.23321711,43161.0,43155.0,0.46344]
[1704133473340,0.23321711,43161.0,43160.0,0.00915629]
[1704133473495,0.23321711,43161.0,43155.0,0.46344]
[1704133473702,0.23321711,43161.0,43160.0,0.01115629]
[1704133473985,0.23421711,43161.0,43160.0,0.002]
[1704133474195,0.23421711,43161.0,43160.0,0.01115629]
[1704133474382,0.23421711,43161.0,43160.0,0.002]
[1704133474383,0.23321711,43161.0,43160.0,0.002]
[1704133474539,0.23421711,43161.0,43153.0,0.463463]
[1704133474737,0.23421711,43161.0,43160.0,0.00915072]
[1704133474946,0.23321711,43161.0,43153.0,0.463463]
[1704133475124,0.23421711,43161.0,43153.0,0.463463]
[1704133475381,0.23421711,43161.0,43154.0,0.00919092]
[1704133476851,0.23321711,43161.0,43154.0,0.00919092]
[1704133477063,0.23321711,43161.0,43153.0,0.463463]
[1704133477270,0.23421711,43161.0,43155.0,0.00917853]
[1704133477473,0.23321711,43161.0,43153.0,0.463463]
[1704133477667,0.23321711,43161.0,43156.0,0.00917183]
[1704133477874,0.23421711,43161.0,43153.0,0.463463]
[1704133478085,0.831538,43165.0,43157.0,0.00916513]
[1704133478086,0.3682,43165.0,43157.0,0.00916513]
[1704133478285,0.23321711,43164.0,43156.0,0.463432]
[1704133478485,0.23321711,43164.0,43158.0,0.00916969]
[1704133478486,0.001,43161.0,43158.0,0.00916969]
[1704133478762,0.001,43161.0,43156.0,0.463432]
[1704133478763,0.23321711,43164.0,43157.0,0.4093]
[1704133478920,0.23321711,43164.0,43159.0,0.00916299]
[1704133479203,0.23321711,43164.0,43157.0,0.4093]
[1704133479406,0.23321711,43164.0,43160.0,0.00915629]
[1704133479530,0.23321711,43164.0,43157.0,0.4093]
[1704133479739,0.28373711,43164.0,43161.0,0.00913874]
[1704133479942,0.05394,43163.0,43153.0,0.463466]
[1704133480137,0.001,43161.0,43154.0,0.4093]
[1704133480341,0.89661511,43160.0,43147.0,0.513525]
[1704133480528,0.1,43159.0,43148.0,0.4093]
[1704133480722,0.23321711,43158.0,43148.0,0.4093]
[1704133480953,0.29195711,43158.0,43148.0,0.4093]
[1704133481361,0.49195711,43158.0,43154.0,0.003]
[1704133481562,0.26078,43157.0,43148.0,0.4093]
[1704133481832,0.23321711,43156.0,43148.0,0.4093]
[1704133482039,0.23321711,43156.0,43148.0,0.015]
[1704133482222,0.49573711,43156.0,43148.0,0.015]
[1704133482431,0.05568,43155.0,43148.0,0.015]
[1704133482644,0.23321711,43154.0,43148.0,0.027]
[1704133483052,0.23321711,43154.0,43148.0,0.015]
[1704133483259,0.23321711,43154.0,43144.0,0.386]
[1704133484102,0.23621711,43154.0,43144.0,0.47928685]
[1704133484696,0.23921711,43154.0,43144.0,0.47928685]
[1704133484894,0.23921711,43154.0,43145.0,0.09328685]
[1704133485751,0.23621711,43154.0,43144.0,0.386]
[1704133486564,0.23321711,43154.0,43144.0,0.386]
[1704133486782,0.23621711,43154.0,43144.0,0.386]
[1704133486987,0.23921711,43154.0,43144.0,0.386]
[1704133487198,0.69967611,43154.0,43144.0,0.386]
[1704133487397,0.23621711,43154.0,43144.0,0.386]
[1704133487605,0.43921711,43154.0,43144.0,0.386]
[1704133489285,0.1,43149.0,43140.0,0.4157]
[1704133489493,0.23321711,43148.0,43140.0,0.4157]
[1704133489734,0.43321711,43148.0,43140.0,0.4157]
[1704133489919,0.48223711,43148.0,43140.0,0.4157]
[1704133490139,0.48223711,43148.0,43141.0,0.00794919]
[1704133490348,0.43321711,43148.0,43141.0,0.00794919]
[1704133490602,0.3,43147.0,43141.0,0.00794919]
[1704133490830,0.23321711,43146.0,43141.0,0.00794919]
[1704133490991,0.23321711,43146.0,43140.0,0.007]
[1704133491197,0.23321711,43146.0,43140.0,0.016]
[1704133491423,0.23321711,43146.0,43141.0,0.00794919]
[1704133491712,0.201,43148.0,43141.0,0.10794919]
[1704133491713,0.001,43148.0,43141.0,0.10794919]
[1704133491877,0.001,43148.0,43145.0,0.21588]
[1704133492018,0.001,43148.0,43146.0,0.4145]
[1704133492218,0.3762,43160.0,43147.0,0.09328685]
[1704133492448,0.3762,43160.0,43147.0,0.10006596]
[1704133492449,0.23321711,43159.0,43147.0,0.10006596]
[1704133492652,0.23321711,43159.0,43148.0,0.14626]
[1704133492861,0.05,43164.0,43155.0,0.463438]
[1704133493028,0.23321711,43163.0,43156.0,0.09328685]
[1704133493432,0.23321711,43163.0,43157.0,0.00673422]
[1704133493641,0.23321711,43163.0,43158.0,0.09328685]
[1704133493841,0.001,43159.0,43157.0,0.00673422]
[1704133494045,0.23321711,43163.0,43158.0,0.00672848]
[1704133494283,0.23621711,43163.0,43158.0,0.00672848]
[1704133494455,0.23621711,43163.0,43155.0,0.463438]
[1704133494656,0.23621711,43163.0,43159.0,0.00671209]
[1704133494856,0.23621711,43163.0,43155.0,0.463438]
[1704133495061,0.23621711,43163.0,43156.0,0.00672932]
[1704133495261,0.23621711,43163.0,43160.0,0.00670635]
[1704133495628,0.23321711,43163.0,43155.0,0.463438]
[1704133495830,0.23321711,43163.0,43157.0,0.002]
[1704133496032,0.23321711,43163.0,43156.0,0.00672932]
[1704133496242,0.23321711,43163.0,43153.0,0.3928]
[1704133496243,0.2,43162.0,43158.0,0.00671783]
[1704133496464,0.23321711,43161.0,43157.0,0.00672358]
[1704133496679,0.23321711,43161.0,43159.0,0.00671209]
[1704133496892,0.23321711,43161.0,43153.0,0.3928]
[1704133497310,0.27791711,43161.0,43160.0,0.00670635]
[1704133497513,0.27791711,43161.0,43153.0,0.3928]
[1704133497734,0.23321711,43161.0,43160.0,0.00670635]
[1704133497945,0.23321711,43161.0,43153.0,0.3928]
[1704133498128,0.23321711,43161.0,43160.0,0.00670635]
[1704133498374,0.23321711,43161.0,43153.0,0.3928]
[1704133498793,0.23321711,43161.0,43154.0,0.00675234]
[1704133499591,0.24221711,43161.0,43155.0,0.463444]
[1704133499800,0.23321711,43161.0,43155.0,0.463444]
[1704133500001,0.23321711,43161.0,43156.0,0.00627667]
[1704133500218,0.24021711,43161.0,43156.0,0.00627667]
[1704133500423,0.3818,43167.0,43156.0,0.46971067]
[1704133500650,0.007,43161.0,43157.0,0.3997]
[1704133501041,0.007,43161.0,43158.0,0.00626359]
[1704133501256,0.007,43161.0,43157.0,0.40786359]
[1704133501427,0.007,43161.0,43157.0,0.3997]
[1704133501428,0.23321711,43160.0,43157.0,0.3997]
[1704133501638,0.23321711,43160.0,43157.0,0.40786359]
[1704133501845,0.23321711,43160.0,43157.0,0.00816359]
[1704133502249,0.23321711,43160.0,43156.0,0.001]
[1704133502454,0.23321711,43160.0,43157.0,0.00816359]
[1704133502861,0.23421711,43160.0,43157.0,0.00816359]
[1704133503104,0.23321711,43160.0,43152.0,0.3997]
[1704133503272,0.23321711,43160.0,43148.0,0.463513]
[1704133503478,0.23281744,43160.0,43157.0,0.00816359]
[1704133503824,0.23281744,43160.0,43149.0,0.393]
[1704133504019,0.23681744,43160.0,43149.0,0.85651]
[1704133504221,0.23681744,43160.0,43150.0,0.47171889]
[1704133504414,0.23681744,43160.0,43150.0,0.18033989]
[1704133504766,0.23681744,43160.0,43151.0,0.04614]
[1704133504973,0.23681744,43160.0,43150.0,0.15465989]
[1704133505322,0.23281744,43160.0,43152.0,0.0082038]
[1704133505576,0.23681744,43160.0,43155.0,0.463437]
[1704133505761,0.23281744,43160.0,43155.0,0.463437]
[1704133506012,0.23381744,43160.0,43156.0,0.00817163]
[1704133506438,0.23281744,43160.0,43156.0,0.00817163]
[1704133506652,0.23681744,43160.0,43155.0,0.463437]
[1704133506865,0.23281744,43160.0,43157.0,0.00816359]
[1704133507077,0.23281744,43160.0,43156.0,0.00817163]
[1704133507284,0.23681744,43160.0,43156.0,0.00817163]
[1704133507924,0.04704,43159.0,43156.0,0.00817163]
[1704133508135,0.23321711,43158.0,43156.0,0.00527223]
[1704133508742,0.27827711,43158.0,43156.0,0.00527223]
[1704133508943,0.23321711,43158.0,43156.0,0.00527223]
[1704133509156,0.28223711,43158.0,43156.0,0.00527223]
[1704133509366,0.28323711,43158.0,43156.0,0.00527223]
[1704133509628,0.23421711,43158.0,43156.0,0.00527223]
[1704133511856,0.23321711,43158.0,43156.0,0.00527223]
[1704133512063,0.23421711,43158.0,43156.0,0.00527223]
[1704133512427,0.23321711,43158.0,43156.0,0.00527223]
[1704133512640,0.23421711,43158.0,43156.0,0.00527223]
[1704133512849,0.23321711,43158.0,43156.0,0.00527223]
[1704133513062,0.20779711,43158.0,43156.0,0.00527223]
[1704133513307,0.20879711,43158.0,43156.0,0.00527223]
[1704133514532,0.16421711,43158.0,43156.0,0.00527223]
[1704133514752,0.16321711,43158.0,43156.0,0.00527223]
[1704133515161,0.20957711,43158.0,43156.0,0.00527223]
[1704133515375,0.16421711,43158.0,43156.0,0.00527223]
[1704133516635,0.001,43158.0,43156.0,0.00527223]
[1704133517064,0.001,43158.0,43157.0,0.01023703]
[1704133517927,0.6843,43165.0,43157.0,0.01023703]
[1704133518163,0.001,43158.0,43157.0,0.01023703]
[1704133518581,0.3,43163.0,43157.0,0.01323703]
[1704133518788,0.23321711,43162.0,43157.0,0.01323703]
[1704133518993,0.3,43161.0,43157.0,0.01623703]
[1704133519214,0.53321711,43161.0,43157.0,0.01623703]
[1704133519421,0.53321711,43161.0,43157.0,0.01323703]
[1704133519629,0.53321711,43161.0,43157.0,0.01023703]
[1704133521368,0.53421711,43161.0,43157.0,0.01023703]
[1704133523309,0.53421711,43161.0,43157.0,0.01550925]
[1704133524574,0.53421711,43161.0,43160.0,0.1]
[1704133524575,0.001,43161.0,43160.0,0.1]
[1704133524804,0.001,43161.0,43160.0,0.2313191]
[1704133525039,0.001,43161.0,43160.0,0.31037909]
[1704133525251,0.001,43161.0,43160.0,0.31037907]
[1704133525461,0.001,43161.0,43160.0,0.77377106]
[1704133525666,0.3804,43175.0,43161.0,0.563376]
[1704133525876,0.23321711,43174.0,43162.0,0.09328685]
[1704133526081,0.23321711,43174.0,43162.0,0.15585899]
[1704133526312,0.23321711,43174.0,43163.0,0.44104]
[1704133526536,0.23321711,43174.0,43163.0,0.44631211]
[1704133526765,3.0,43177.0,43167.0,0.1]
[1704133527001,3.0,43177.0,43167.0,0.10527207]
[1704133527221,3.0,43177.0,43168.0,0.57454]
[1704133527432,3.0,43177.0,43169.0,0.463293]
[1704133527633,3.0,43177.0,43169.0,0.52556499]
[1704133527844,3.0,43177.0,43170.0,0.0534]
[1704133528060,3.0,43177.0,43170.0,0.05867197]
[1704133528270,3.0,43177.0,43170.0,0.05867196]
[1704133528760,3.0,43177.0,43171.0,0.0483]
[1704133528974,3.0,43177.0,43171.0,0.05357195]
[1704133529415,3.0,43177.0,43172.0,0.04608]
[1704133529628,3.0,43177.0,43172.0,0.05135195]
[1704133529846,3.0,43177.0,43172.0,0.05135194]
[1704133530061,3.0,43177.0,43172.0,0.00527194]
[1704133530702,3.0,43177.0,43172.0,0.09855879]
[1704133531124,3.0,43177.0,43172.0,0.00527193]
[1704133531537,3.0,43177.0,43172.0,0.01127193]
[1704133533666,3.0,43177.0,43175.0,0.463226]
[1704133533880,3.0,43177.0,43175.0,0.46849788]
[1704133534097,3.0,43177.0,43176.0,0.61926]
[1704133534333,3.0,43177.0,43176.0,0.62453176]
[1704133534560,3.0,43177.0,43176.0,1.09074882]
[1704133534771,3.0,43177.0,43176.0,1.0907487]
[1704133535023,3.0,43177.0,43176.0,1.09074864]
[1704133535242,3.0,43177.0,43176.0,0.65753148]
[1704133535452,3.0,43177.0,43176.0,0.65953142]
[1704133535677,3.0,43177.0,43176.0,0.65753139]
[1704133535882,3.0,43177.0,43176.0,0.67653137]
[1704133536096,3.0,43177.0,43176.0,0.65753136]
[1704133536355,3.0,43177.0,43176.0,0.57849134]
[1704133536567,3.0,43177.0,43176.0,0.58749131]
[1704133536780,3.0,43177.0,43176.0,0.56849128]
[1704133536996,3.0,43177.0,43176.0,0.58749125]
[1704133537211,3.0,43177.0,43176.0,0.59749124]
[1704133537419,3.0,43177.0,43176.0,0.57849122]
[1704133537629,3.0,43177.0,43176.0,0.59749121]
[1704133538032,3.0,43177.0,43176.0,0.5974912]
[1704133538238,3.0,43177.0,43176.0,0.58749119]
[1704133538447,3.0,43177.0,43176.0,0.64237118]
[1704133538660,3.0,43177.0,43176.0,0.50649116]
[1704133538873,3.0,43177.0,43176.0,0.50649113]
[1704133539084,3.0,43177.0,43176.0,0.4874911]
[1704133539301,3.0,43177.0,43176.0,0.04327107]
[1704133539509,3.0,43177.0,43176.0,0.04327106]
[1704133540384,3.0,43177.0,43176.0,0.04327105]
[1704133540590,3.23321711,43177.0,43176.0,0.02427105]
[1704133540801,3.0,43177.0,43176.0,0.03327105]
[1704133541212,3.0,43177.0,43176.0,0.00527105]
[1704133541653,3.0,43177.0,43176.0,0.01427105]
[1704133541857,3.0,43177.0,43176.0,0.00727104]
[1704133542069,3.002,43177.0,43176.0,0.00727104]
[1704133542307,3.0,43177.0,43176.0,0.00727104]
[1704133542911,3.002,43177.0,43176.0,0.00727104]
[1704133543134,3.0,43177.0,43176.0,0.00727104]
[1704133543351,3.0,43177.0,43176.0,0.00527104]
[1704133544274,3.0,43177.0,43176.0,0.01027104]
[1704133544706,3.23321711,43177.0,43176.0,0.01027104]
[1704133544955,3.0,43177.0,43176.0,0.01027104]
[1704133545354,3.23321711,43177.0,43176.0,0.01027104]
[1704133545572,3.23321711,43177.0,43176.0,0.01227104]
[1704133546662,3.23321711,43177.0,43176.0,0.00727104]
[1704133546874,3.23321711,43177.0,43176.0,0.00527104]
[1704133548112,3.23621711,43177.0,43176.0,0.00527104]
[1704133548317,3.23321711,43177.0,43176.0,0.00527104]
[1704133548899,3.23621711,43177.0,43176.0,0.00527104]
[1704133549327,3.23621711,43177.0,43176.0,0.00527103]
[1704133549977,4.35492611,43177.0,43176.0,0.00527103]
[1704133551475,4.29942611,43177.0,43176.0,0.00527103]
[1704133552168,4.19942611,43177.0,43176.0,0.00527103]
[1704133554744,4.29942611,43177.0,43176.0,0.00527103]
[1704133554954,4.35144611,43177.0,43176.0,0.00527103]
[1704133555442,4.29942611,43177.0,43176.0,0.00527103]
[1704133555665,4.35108611,43177.0,43176.0,0.00527103]
[1704133555871,4.29942611,43177.0,43176.0,0.00527103]
[1704133556506,4.35186611,43177.0,43176.0,0.00527103]
[1704133556720,4.05186611,43177.0,43176.0,0.00527103]
[1704133556930,3.003,43177.0,43176.0,0.00527103]
[1704133557361,3.23621711,43177.0,43176.0,0.00527103]
[1704133558000,3.43321711,43177.0,43176.0,0.00527103]
[1704133558437,3.43521711,43177.0,43176.0,0.00527103]
[1704133558852,3.23521711,43177.0,43176.0,0.00527103]
[1704133559063,3.23521711,43177.0,43167.0,0.38967103]
[1704133559321,0.23321711,43176.0,43167.0,0.38967103]
[1704133559801,0.23321711,43176.0,43167.0,0.85298503]
[1704133560856,0.23321711,43176.0,43167.0,0.85398503]
[1704133561176,0.23321711,43176.0,43167.0,0.39367103]
[1704133561895,0.2,43172.0,43167.0,0.004]
[1704133562123,0.43321711,43171.0,43167.0,0.004]
[1704133562359,0.46329,43170.0,43167.0,0.004]
[1704133562564,0.23321711,43169.0,43167.0,0.004]
[1704133562779,0.3,43168.0,43167.0,0.004]
[1704133562984,0.83321711,43168.0,43167.0,0.001]
[1704133563215,0.89705711,43168.0,43167.0,0.001]
[1704133563420,1.36036311,43168.0,43167.0,0.001]
[1704133563845,1.50739942,43168.0,43167.0,0.001]
[1704133564056,1.50739942,43168.0,43153.0,0.05]
[1704133564057,0.3,43161.0,43153.0,0.05]
[1704133564269,0.1,43159.0,43153.0,0.05]
[1704133564486,0.1,43155.0,43153.0,0.05]
[1704133564696,0.23321711,43154.0,43153.0,0.05]
[1704133565310,0.23321711,43154.0,43145.0,0.4181]
[1704133565706,0.23321711,43154.0,43153.0,0.001]
[1704133567047,0.23321711,43154.0,43145.0,0.4181]
[1704133567251,0.23521711,43154.0,43145.0,0.4181]
[1704133567482,0.53321711,43153.0,43139.0,0.05]
[1704133567701,0.53321711,43153.0,43141.0,0.411]